bitfinex-derivatives/quotes_SOLF0:USTF0_20260227
["timestamp","ask_amount","ask_price","bid_price","bid_amount"]
[1772219081506,3.40911004,81.519,81.461,3.65143363]
[1772219082309,3.5060203,81.51,81.472,3.65143363]
[1772219084509,3.5060203,81.51,81.474,3.65143363]
[1772219086014,3.5060203,81.51,81.476,11.0468]
[1772219086819,3.41463128,81.509,81.476,14.69823363]
[1772219091520,3.41463128,81.509,81.476,11.0468]
[1772219091521,3.5060203,81.5,81.476,11.0468]
[1772219091719,3.5060203,81.5,81.469,11.0478]
[1772219094717,3.5060203,81.5,81.465,3.65143363]
[1772219094918,3.5060203,81.49,81.452,3.65143363]
[1772219095517,3.5060203,81.49,81.457,11.0494]
[1772219095715,3.29782595,81.499,81.443,15.20186285]
[1772219095716,3.5060203,81.48,81.444,3.65143363]
[1772219095914,11.35245085,81.525,81.433,22.76647628]
[1772219095915,3.5060203,81.47,81.433,3.65143363]
[1772219096310,3.5060203,81.47,81.436,14.70373363]
[1772219099120,3.5060203,81.47,81.437,3.65143363]
[1772219099319,3.5060203,81.48,81.437,3.65143363]
[1772219099723,3.5060203,81.47,81.437,3.65143363]
[1772219100319,3.5060203,81.48,81.445,3.65143363]
[1772219101219,3.5060203,81.47,81.445,3.65143363]
[1772219101427,3.5060203,81.46,81.412,3.65143363]
[1772219102424,3.5060203,81.45,81.412,3.65143363]
[1772219103734,3.5060203,81.45,81.417,11.0548]
[1772219103928,3.5060203,81.45,81.417,14.70623363]
[1772219104128,3.5060203,81.47,81.433,3.65143363]
[1772219104931,3.5060203,81.46,81.433,3.65143363]
[1772219106128,22.0881,81.498,81.395,22.1157]
[1772219106129,3.5060203,81.45,81.412,3.65143363]
[1772219108033,3.5060203,81.45,81.421,11.0544]
[1772219108636,3.5060203,81.45,81.427,11.0535]
[1772219108829,3.02642657,81.472,81.424,3.65143363]
[1772219109030,3.5060203,81.47,81.424,3.65143363]
[1772219109230,3.5060203,81.48,81.424,3.65143363]
[1772219110029,3.03362891,81.479,81.438,3.65143363]
[1772219110227,3.5060203,81.47,81.438,3.65143363]
[1772219111037,3.5060203,81.47,81.439,11.0518]
[1772219115035,3.5060203,81.46,81.439,11.0518]
[1772219115840,3.5060203,81.46,81.426,3.93813334]
[1772219116137,3.5060203,81.45,81.401,3.93813334]
[1772219117142,3.5060203,81.45,81.415,11.0551]
[1772219117336,3.5060203,81.45,81.416,3.93813334]
[1772219118938,3.5060203,81.45,81.418,11.0547]
[1772219120132,3.5060203,81.44,81.405,3.93813334]
[1772219120331,36.84,81.482,81.381,3.93813334]
[1772219120332,3.5060203,81.43,81.381,3.93813334]
[1772219120532,3.14781425,81.445,81.391,3.93813334]
[1772219121536,3.5060203,81.44,81.391,3.93813334]
[1772219122041,3.5060203,81.44,81.41,11.0558]
[1772219122238,3.14227768,81.439,81.404,3.93813334]
[1772219122630,3.5060203,81.43,81.404,3.93813334]
[1772219124043,3.5060203,81.43,81.404,14.99483334]
[1772219124238,3.5060203,81.43,81.393,3.93813334]
[1772219125440,3.14227768,81.439,81.404,3.93813334]
[1772219126041,2.03e-05,81.45,81.416,3.93813334]
[1772219126241,3.5060203,81.47,81.416,3.93813334]
[1772219127141,3.1484646,81.477,81.445,11.0511]
[1772219127345,3.1484646,81.477,81.436,3.93813334]
[1772219128341,3.1484646,81.477,81.445,11.0511]
[1772219129042,3.5060203,81.5,81.462,15.0775054]
[1772219129744,3.5060203,81.49,81.455,11.0498]
[1772219130640,3.5060203,81.51,81.459,4.0363159]
[1772219130947,3.5060203,81.5,81.459,4.0363159]
[1772219131648,3.5060203,81.49,81.459,4.0363159]
[1772219131844,3.5060203,81.49,81.431,4.05119015]
[1772219132941,3.5060203,81.49,81.455,11.0498]
[1772219133246,3.5060203,81.49,81.448,4.05119015]
[1772219133247,3.5071034,81.48,81.448,4.05119015]
[1772219133448,3.5071034,81.48,81.452,0.07760508]
[1772219136051,3.5071034,81.47,81.452,0.07760508]
[1772219136753,3.5071034,81.47,81.435,4.04792688]
[1772219137852,3.5071034,81.47,81.41,3.5071034]
[1772219137853,3.5071034,81.49,81.443,4.04511612]
[1772219138942,3.5071034,81.49,81.453,11.05]
[1772219141449,11.043,81.505,81.457,4.04654705]
[1772219141753,3.5071034,81.49,81.457,4.04654705]
[1772219142052,3.5071034,81.5,81.457,4.04654705]
[1772219142952,3.5071034,81.5,81.46,11.049]
[1772219143457,3.5071034,81.5,81.461,4.04230185]
[1772219146559,3.5071034,81.49,81.461,4.04230185]
[1772219149353,3.5071034,81.49,81.467,0.07743318]
[1772219151158,3.5071034,81.48,81.439,4.09756556]
[1772219152157,3.5071034,81.48,81.445,4.09416456]
[1772219153159,3.5071034,81.49,81.445,4.09416456]
[1772219153656,3.5071034,81.49,81.457,4.09034736]
[1772219153855,11.044,81.498,81.457,4.09034736]
[1772219153856,3.5071034,81.5,81.457,4.09034736]
[1772219154856,3.5071034,81.49,81.458,11.0493]
[1772219155557,0.07759509,81.482,81.458,11.0493]
[1772219156057,0.07759509,81.482,81.462,4.09021698]
[1772219156458,3.5071034,81.5,81.462,4.09021698]
[1772219157364,3.5071034,81.51,81.464,4.09021698]
[1772219157557,3.5071034,81.52,81.464,4.09021698]
[1772219158857,14.5481034,81.52,81.475,4.099905]
[1772219159959,14.5481034,81.52,81.478,4.09524709]
[1772219160561,3.5071034,81.53,81.481,4.09524709]
[1772219161261,3.5071034,81.54,81.502,4.09524709]
[1772219162061,525.46114937,81.55,81.513,15.13704709]
[1772219162253,14.02901265,81.539,81.514,4.09524709]
[1772219162659,14.02901265,81.539,81.508,11.0425]
[1772219163264,521.95404597,81.55,81.516,11.0415]
[1772219163565,525.46114937,81.55,81.508,4.07134156]
[1772219164065,3.5071034,81.57,81.518,4.07163673]
[1772219164462,3.5071034,81.57,81.48,46.0]
[1772219164463,3.5071034,81.56,81.481,4.07163673]
[1772219164666,3.5071034,81.56,81.48,46.0]
[1772219164667,3.5071034,81.56,81.511,4.07163673]
[1772219165361,3.5071034,81.56,81.523,15.11213673]
[1772219165560,3.5071034,81.56,81.523,4.07163673]
[1772219166567,3.5071034,81.55,81.516,4.10145726]
[1772219166769,3.5071034,81.54,81.491,4.10145726]
[1772219167860,3.5071034,81.54,81.496,11.0441]
[1772219168059,3.5071034,81.54,81.497,4.09778413]
[1772219168264,3.5071034,81.53,81.484,4.09778413]
[1772219169954,3.5071034,81.53,81.49,11.0449]
[1772219170656,3.5071034,81.52,81.49,11.0449]
[1772219171567,3.5071034,81.53,81.49,11.0449]
[1772219174561,11.0386,81.538,81.491,4.07688932]
[1772219174869,3.5071034,81.53,81.494,11.0445]
[1772219177870,3.5071034,81.53,81.498,11.0439]
[1772219178574,3.5071034,81.53,81.495,4.09256451]
[1772219179962,3.5071034,81.53,81.496,11.0441]
[1772219180162,3.5071034,81.53,81.496,15.13188528]
[1772219181073,3.5071034,81.53,81.496,4.08778528]
[1772219188277,3.5071034,81.52,81.483,15.09661347]
[1772219188780,3.5071034,81.52,81.484,4.0419002]
[1772219189885,11.0411,81.519,81.484,4.0419002]
[1772219190078,3.5071034,81.52,81.486,11.0456]
[1772219190277,3.5071034,81.52,81.486,15.0875002]
[1772219190684,3.5071034,81.52,81.487,4.04009579]
[1772219191586,3.5071034,81.52,81.489,4.04009579]
[1772219191781,3.5071034,81.55,81.49,3.5071034]
[1772219191980,3.5071034,81.55,81.491,4.04009579]
[1772219192182,3.5071034,81.54,81.491,4.04009579]
[1772219192580,11.0371,81.549,81.504,4.04009579]
[1772219193887,11.0371,81.549,81.507,4.04036343]
[1772219194186,3.5071034,81.54,81.507,4.04036343]
[1772219195282,3.5018214,81.54,81.507,4.04036343]
[1772219195883,11.0384,81.539,81.507,4.04036343]
[1772219198087,3.5018214,81.52,81.472,4.09784699]
[1772219198692,11.0411,81.519,81.483,11.0459]
[1772219198894,3.5018214,81.51,81.455,4.08017493]
[1772219199092,3.5018214,81.51,81.461,4.08017493]
[1772219199393,14.5429214,81.52,81.477,4.08017493]
[1772219199590,11.35123659,81.554,81.481,4.08017493]
[1772219199892,3.5018214,81.54,81.481,4.08017493]
[1772219200982,11.0385,81.538,81.499,15.11440575]
[1772219202592,3.5018214,81.54,81.499,15.11440575]
[1772219203190,3.5018214,81.54,81.5,4.0693903]
[1772219203694,3.5018214,81.54,81.501,11.0435]
[1772219204782,3.5018214,81.54,81.501,15.12363242]
[1772219205994,3.5018214,81.53,81.501,15.12363242]
[1772219206798,3.5018214,81.53,81.502,4.07969432]
[1772219209702,11.0384,81.54,81.502,4.07969432]
[1772219211701,3.5018214,81.56,81.502,4.07969432]
[1772219211702,11.039,81.535,81.502,4.07969432]
[1772219211901,11.039,81.535,81.49,3.5018214]
[1772219212093,3.5018214,81.54,81.48,3.5018214]
[1772219212296,3.5018214,81.54,81.475,4.05675817]
[1772219213002,11.0421,81.512,81.475,4.05675817]
[1772219214301,11.0413,81.518,81.475,4.05675817]
[1772219214500,11.0413,81.518,81.48,3.5018214]
[1772219215103,11.042,81.513,81.48,3.5018214]
[1772219215702,11.0411,81.519,81.48,7.57328753]
[1772219217506,11.0411,81.519,81.482,4.07374864]
[1772219219109,11.0411,81.519,81.484,4.07427881]
[1772219220507,11.35123659,81.538,81.452,15.19458963]
[1772219220708,3.5018214,81.51,81.45,3.5018214]
[1772219220918,3.5018214,81.51,81.451,4.07444384]
[1772219221107,11.044,81.498,81.455,4.07444384]
[1772219221508,11.0449,81.492,81.455,4.07444384]
[1772219221709,14.4606025,81.509,81.441,4.07444384]
[1772219222003,14.4606025,81.509,81.431,4.07444384]
[1772219222004,3.5018214,81.49,81.431,4.07444384]
[1772219222911,11.0472,81.475,81.432,4.03551884]
[1772219223513,3.5018214,81.49,81.432,4.03551884]
[1772219224311,3.5018214,81.48,81.432,4.03551884]
[1772219225921,11.0478,81.47,81.432,4.03551884]
[1772219228617,3.5018214,81.5,81.441,4.14098622]
[1772219228819,3.5018214,81.51,81.451,4.1573019]
[1772219229019,3.5018214,81.52,81.46,3.5018214]
[1772219229220,3.5018214,81.53,81.47,3.5018214]
[1772219229517,3.5018214,81.53,81.471,4.1573019]
[1772219230022,11.0421,81.512,81.471,4.1573019]
[1772219231021,11.0421,81.512,81.411,36.84]
[1772219231022,3.5018214,81.52,81.46,3.5018214]
[1772219231525,8.93950502,81.533,81.471,4.14864599]
[1772219231526,3.5018214,81.53,81.471,4.14864599]
[1772219232420,3.5018214,81.54,81.481,4.14864599]
[1772219233919,11.0408,81.522,81.481,4.14864599]
[1772219234918,11.0397,81.53,81.491,4.10019232]
[1772219239518,11.0388,81.537,81.491,4.10019232]
[1772219239725,8.93950502,81.558,81.501,4.1003922]
[1772219241024,3.5018214,81.55,81.501,4.1003922]
[1772219241924,11.0386,81.538,81.501,4.1003922]
[1772219245530,11.0377,81.545,81.501,4.1003922]
[1772219247632,3.5018214,81.55,81.485,4.03028464]
[1772219247927,22.0712,81.56,81.485,4.03028464]
[1772219247928,3.5018214,81.54,81.485,4.03028464]
[1772219248633,11.0407,81.522,81.485,4.03028464]
[1772219249631,11.0407,81.522,81.49,3.5018214]
[1772219250130,11.0396,81.531,81.501,4.02783656]
[1772219255035,11.0386,81.538,81.501,4.02783656]
[1772219255432,8.93950502,81.558,81.511,4.00853565]
[1772219256738,0.02307366,81.557,81.511,4.00853565]
[1772219256941,11.0376,81.545,81.511,4.00853565]
[1772219260335,3.50131867,81.55,81.493,4.01475522]
[1772219260535,3.50131867,81.54,81.493,4.01475522]
[1772219260747,3.50131867,81.53,81.481,4.01444969]
[1772219262641,11.0407,81.522,81.484,4.01444969]
[1772219263132,8.93950502,81.546,81.484,4.01444969]
[1772219263339,11.0423,81.511,81.472,4.00620684]
[1772219266039,11.0432,81.504,81.461,43.54195788]
[1772219266247,3.50131867,81.52,81.483,0.07780176]
[1772219266838,3.50131867,81.52,81.419,22.1091]
[1772219266839,22.0811,81.524,81.439,4.05188178]
[1772219267034,3.50131867,81.49,81.439,4.05188178]
[1772219267235,3.50131867,81.5,81.439,4.05188178]
[1772219267443,3.50131867,81.49,81.439,4.05188178]
[1772219268038,14.54631867,81.49,81.439,4.05188178]
[1772219268237,3.50131867,81.5,81.441,4.05188178]
[1772219268548,3.50131867,81.5,81.44,3.50131867]
[1772219268549,3.50131867,81.5,81.451,4.05188178]
[1772219270035,11.044,81.498,81.451,4.05188178]
[1772219271346,0.07818179,81.483,81.451,4.05188178]
[1772219273945,0.07818179,81.483,81.457,15.1076987]
[1772219276546,0.07818179,81.483,81.457,4.0582987]
[1772219280145,0.07818179,81.483,81.459,4.10189047]
[1772219280543,0.07818179,81.483,81.441,4.10189047]
[1772219281045,3.50131867,81.49,81.441,4.10189047]
[1772219281349,3.50131867,81.48,81.441,4.10189047]
[1772219281540,3.50131867,81.47,81.421,4.10148829]
[1772219282149,3.50131867,81.46,81.422,4.10148829]
[1772219284956,3.50131867,81.46,81.39,356.05480199]
[1772219284957,3.50131867,81.45,81.401,4.09932189]
[1772219285350,0.07785153,81.449,81.401,4.09932189]
[1772219286149,11.051,81.447,81.401,4.09932189]
[1772219287549,0.077777,81.432,81.401,4.09932189]
[1772219288959,0.077777,81.432,81.406,4.11364939]
[1772219291754,0.077777,81.432,81.393,4.11922712]
[1772219293651,0.077777,81.432,81.397,4.08664894]
[1772219295257,0.077777,81.432,81.38,3.50131867]
[1772219295258,3.50131867,81.42,81.381,4.06592322]
[1772219298759,11.0548,81.419,81.381,4.06592322]
[1772219299861,11.0566,81.405,81.37,4.05099072]
[1772219301166,3.50131867,81.41,81.37,4.05099072]
[1772219302266,36.84,81.449,81.37,4.05099072]
[1772219302267,11.0562,81.408,81.37,4.05099072]
[1772219303066,36.84,81.449,81.372,4.05706344]
[1772219303264,3.50131867,81.42,81.372,4.05706344]
[1772219303964,14.55591867,81.42,81.374,4.05706344]
[1772219304365,0.07763552,81.404,81.374,4.05706344]
[1772219307073,0.07763552,81.404,81.365,4.02084396]
[1772219307370,0.07763552,81.404,81.368,4.02084396]
[1772219307966,3.50131867,81.39,81.341,4.02084396]
[1772219308168,3.50131867,81.37,81.321,17.24392402]
[1772219308366,3.50131867,81.36,81.321,17.24392402]
[1772219308671,3.50131867,81.35,81.237,22.81193846]
[1772219308868,3.50131867,81.33,81.28,3.50131867]
[1772219309168,3.50131867,81.33,81.27,3.50131867]
[1772219309372,5.5291555,81.349,81.25,3.50131867]
[1772219309373,3.50131867,81.31,81.25,3.50131867]
[1772219309578,11.0697,81.309,81.25,3.50131867]
[1772219310067,11.0684,81.319,81.26,3.50131867]
[1772219310671,11.0684,81.319,81.261,8.63219656]
[1772219311071,11.0671,81.328,81.281,8.63204001]
[1772219311375,3.50131867,81.34,81.281,8.63204001]
[1772219311565,11.0659,81.337,81.283,8.63204001]
[1772219311767,57.93912363,81.347,81.291,8.63204001]
[1772219312867,69.00372363,81.347,81.291,8.63204001]
[1772219313067,57.93912363,81.347,81.301,8.64669256]
[1772219313474,3.50131867,81.36,81.301,8.64669256]
[1772219313771,11.0628,81.359,81.304,8.64669256]
[1772219316770,11.0628,81.359,81.306,8.6305515]
[1772219316968,11.0617,81.368,81.306,8.6305515]
[1772219317174,9.42360522,81.38,81.306,8.6305515]
[1772219317370,36.84,81.409,81.306,8.6305515]
[1772219317371,9.42113627,81.39,81.306,8.6305515]
[1772219317875,11.0626,81.361,81.306,8.6305515]
[1772219318076,5.53341164,81.389,81.306,8.6305515]
[1772219318782,9.42113627,81.35,81.242,8.59207372]
[1772219319076,9.42113627,81.35,81.253,8.59207372]
[1772219319282,11.0672,81.327,81.253,8.59207372]
[1772219319778,11.0682,81.32,81.262,8.59209097]
[1772219320872,11.0692,81.312,81.262,8.59209097]
[1772219322076,11.0692,81.312,81.264,11.0756]
[1772219322277,11.0681,81.32,81.265,8.54086693]
[1772219322672,5.53443579,81.349,81.265,8.54086693]
[1772219322879,9.42113627,81.33,81.265,8.54086693]
[1772219323876,11.0701,81.306,81.265,8.54086693]
[1772219325183,11.0689,81.314,81.265,8.54086693]
[1772219326481,11.07,81.306,81.265,8.54086693]
[1772219326687,9.42113627,81.31,81.249,8.54008867]
[1772219327182,11.072,81.292,81.249,8.54008867]
[1772219330983,9.42113627,81.29,81.21,8.5236456]
[1772219331785,9.42113627,81.27,81.21,8.5236456]
[1772219332481,9.42113627,81.27,81.191,39.90224567]
[1772219332482,9.42113627,81.27,81.195,8.5236456]
[1772219332688,9.42113627,81.25,81.195,8.5236456]
[1772219333183,11.0799,81.234,81.195,8.5236456]
[1772219333587,9.42113627,81.25,81.181,8.52675748]
[1772219333887,9.42113627,81.23,81.181,8.52675748]
[1772219334086,9.42113627,81.21,81.177,7.05389174]
[1772219334287,11.081,81.226,81.163,8.52675748]
[1772219334877,11.0824,81.215,81.163,8.52675748]
[1772219335287,9.42113627,81.24,81.163,8.52675748]
[1772219335482,9.42113627,81.24,81.173,8.59870549]
[1772219336188,11.0804,81.23,81.173,8.59870549]
[1772219336385,9.42113627,81.24,81.173,8.59870549]
[1772219336984,9.42113627,81.24,81.129,2.14311447]
[1772219336985,9.42113627,81.22,81.131,8.58354788]
[1772219337379,11.0849,81.197,81.145,8.58354788]
[1772219337587,9.42113627,81.2,81.145,8.58354788]
[1772219338079,11.0834,81.208,81.147,8.58354788]
[1772219338283,9.42113627,81.22,81.147,8.58354788]
[1772219339486,11.0822,81.217,81.161,8.58751247]
[1772219340084,11.0834,81.208,81.161,8.58751247]
[1772219340286,9.42113627,81.22,81.146,8.58751247]
[1772219340489,9.42113627,81.2,81.146,8.58751247]
[1772219341087,9.42113627,81.22,81.146,8.58751247]
[1772219341384,11.0832,81.21,81.159,8.52215574]
[1772219342088,11.0832,81.21,81.12,9.42113627]
[1772219342089,58.5610183,81.233,81.161,8.52215574]
[1772219342889,11.0804,81.23,81.17,8.52816699]
[1772219344388,58.5610183,81.233,81.176,8.52816699]
[1772219345186,58.5610183,81.233,81.183,8.50997039]
[1772219346383,58.5610183,81.233,81.185,8.50997039]
[1772219347582,11.0804,81.231,81.185,8.50997039]
[1772219347788,2.07756572,81.269,81.185,8.50997039]
[1772219348289,2.07756572,81.231,81.185,8.50997039]
[1772219349396,2.1633761,81.229,81.17,3.66575379]
[1772219350291,9.42113627,81.23,81.17,3.66575379]
[1772219350292,2.16612353,81.215,81.17,3.66575379]
[1772219352893,1.8849266,81.214,81.17,3.66575379]
[1772219353096,1.8849266,81.209,81.123,3.77193228]
[1772219354498,1.8849266,81.209,81.152,3.77193228]
[1772219355896,11.0834,81.208,81.164,11.0893]
[1772219356893,46.26113627,81.23,81.167,3.77193228]
[1772219356894,11.0825,81.215,81.167,3.77193228]
[1772219357399,1.88864889,81.224,81.167,3.77193228]
[1772219357791,1.88864889,81.224,81.171,11.0884]
[1772219357792,11.0824,81.215,81.171,11.0884]
[1772219357991,1.88864889,81.214,81.154,3.77193228]
[1772219358388,1.88864889,81.214,81.171,3.77193228]
[1772219359899,1.88864889,81.214,81.172,11.0883]
[1772219360388,1.88864889,81.214,81.171,3.77193228]
[1772219360589,1.88864889,81.214,81.186,11.0863]
[1772219360789,1.88864889,81.214,81.171,3.77193228]
[1772219361189,3.53068584,81.21,81.171,3.77193228]
[1772219362197,3.53068584,81.2,81.157,3.77193228]
[1772219362594,3.53068584,81.2,81.157,14.86223228]
[1772219363591,3.53068584,81.19,81.157,3.77193228]
[1772219363791,5.52567591,81.19,81.148,11.0915]
[1772219364097,3.53068584,81.18,81.148,11.0915]
[1772219364493,3.53068584,81.17,81.13,3.77193228]
[1772219364695,3.53068584,81.16,81.13,3.77193228]
[1772219364900,3.53068584,81.15,81.116,3.77193228]
[1772219365196,3.53068584,81.14,81.097,3.77193228]
[1772219365393,11.0921,81.144,81.097,3.77193228]
[1772219367003,11.0921,81.144,81.099,3.77193228]
[1772219367900,1.93957663,81.152,81.099,3.77193228]
[1772219368701,13.03077663,81.151,81.101,3.77193228]
[1772219369401,13.03077663,81.151,81.069,2.14516875]
[1772219369402,13.03077663,81.151,81.103,3.77193228]
[1772219369699,1.89011556,81.147,81.103,3.77193228]
[1772219370206,1.89011556,81.134,81.088,3.77193228]
[1772219370600,9.47419522,81.14,81.097,3.77193228]
[1772219371503,11.59312585,81.16,81.097,3.77193228]
[1772219372100,2.11893063,81.159,81.113,3.77193228]
[1772219372500,2.11893063,81.173,81.133,11.0935]
[1772219372800,2.11893063,81.173,81.132,3.77193228]
[1772219373200,2.11893063,81.173,81.097,3.77193228]
[1772219373406,2.11893063,81.173,81.119,3.77193228]
[1772219374004,2.11893063,81.173,81.121,3.77193228]
[1772219374596,2.13382629,81.172,81.121,3.77193228]
[1772219376009,11.0886,81.17,81.123,11.095]
[1772219376306,13.22295423,81.17,81.124,3.77193228]
[1772219376503,2.13435423,81.159,81.097,3.77193228]
[1772219377896,2.1305661,81.15,81.099,3.77193228]
[1772219378101,2.1305661,81.15,81.06,9.47373541]
[1772219378102,2.1305661,81.15,81.06,3.77193228]
[1772219378497,38.98466637,81.202,81.112,3.77193228]
[1772219378498,11.0895,81.164,81.112,3.77193228]
[1772219378907,2.13396327,81.163,81.112,3.77193228]
[1772219379404,2.13396327,81.163,81.118,15.08778434]
[1772219379707,9.47373541,81.17,81.118,3.99218434]
[1772219380209,2.13466378,81.177,81.133,3.99346233]
[1772219380814,9.47373541,81.19,81.141,11.0925]
[1772219380998,2.02717609,81.189,81.141,15.08596233]
[1772219381903,2.02717609,81.187,81.141,15.08596233]
[1772219382101,2.02717609,81.187,81.141,3.99346233]
[1772219383710,2.05266178,81.185,81.141,3.99346233]
[1772219384011,2.05266178,81.185,81.088,56.7480495]
[1772219384012,2.05266178,81.185,81.125,3.99346233]
[1772219384806,2.0572614,81.169,81.125,3.99346233]
[1772219385005,2.0572614,81.168,81.107,3.99346233]
[1772219385604,11.0915,81.149,81.107,3.99346233]
[1772219385800,2.0572614,81.148,81.107,3.99346233]
[1772219386211,2.0572614,81.146,81.099,11.0982]
[1772219386601,2.0572614,81.146,81.105,11.0974]
[1772219386807,11.0924,81.143,81.094,3.99346233]
[1772219387007,2.12906975,81.168,81.094,3.99346233]
[1772219387313,11.0913,81.151,81.104,3.99346233]
[1772219387909,11.0913,81.151,81.106,11.0973]
[1772219388514,11.0921,81.145,81.104,3.99346233]
[1772219389106,2.12906975,81.159,81.12,3.99346233]
[1772219389706,2.19188164,81.169,81.089,3.99346233]
[1772219390915,13.29687493,81.158,81.11,11.0967]
[1772219391212,9.47373541,81.17,81.11,11.0967]
[1772219391213,2.20657493,81.157,81.11,11.0967]
[1772219391715,2.20657493,81.169,81.114,3.99346233]
[1772219392408,2.20657493,81.169,81.119,3.99346233]
[1772219393412,2.20657493,81.169,81.126,15.08796233]
[1772219394625,11.089,81.167,81.126,3.99346233]
[1772219395220,11.09,81.16,81.126,3.99346233]
[1772219396425,11.09,81.16,81.117,3.99346233]
[1772219396826,13.23914825,81.167,81.117,3.99346233]
[1772219397526,13.23281802,81.182,81.128,3.99346233]
[1772219398422,13.23281802,81.182,81.14,11.0926]
[1772219398724,20.55963541,81.19,81.141,3.99346233]
[1772219398925,2.14133864,81.196,81.149,3.99346233]
[1772219399521,2.14133864,81.207,81.151,3.99346233]
[1772219399919,2.14133864,81.229,81.151,3.99346233]
[1772219400120,8.83076906,81.233,81.172,3.99346233]
[1772219400425,531.67419638,81.236,81.172,3.99346233]
[1772219400626,531.67419638,81.236,81.124,172.5866]
[1772219400627,529.53285774,81.236,81.2,3.99346233]
[1772219400923,529.53285774,81.236,81.186,3.99346233]
[1772219401120,11.0809,81.226,81.186,3.99346233]
[1772219401927,11.0821,81.218,81.172,3.99346233]
[1772219402129,2.04189144,81.217,81.172,3.99346233]
[1772219402931,2.04189144,81.217,81.173,11.088]
[1772219403630,2.04189144,81.217,81.13,9.47373541]
[1772219403631,13.23890979,81.233,81.177,3.99346233]
[1772219403929,2.15890979,81.233,81.177,3.99346233]
[1772219404323,2.15890979,81.245,81.19,3.99346233]
[1772219404529,2.15890979,81.259,81.19,3.99346233]
[1772219405028,11.0747,81.272,81.218,3.99346233]
[1772219405333,9.47373541,81.29,81.219,11.0818]
[1772219405334,2.16418078,81.269,81.219,11.0818]
[1772219405534,2.16418078,81.289,81.218,3.99346233]
[1772219406230,2.16418078,81.287,81.228,3.99346233]
[1772219407631,2.16418078,81.287,81.231,3.99346233]
[1772219408733,11.0728,81.286,81.231,3.99346233]
[1772219409532,11.074,81.278,81.231,3.99346233]
[1772219411034,13.23688078,81.287,81.234,3.99572315]
[1772219411239,9.47373541,81.29,81.234,3.99572315]
[1772219411434,2.22001801,81.302,81.234,3.99572315]
[1772219411635,11.0715,81.295,81.244,3.99572315]
[1772219412436,11.0704,81.304,81.246,3.99572315]
[1772219413937,11.0713,81.297,81.246,3.99572315]
[1772219415339,11.0724,81.289,81.246,3.99572315]
[1772219416140,13.37149102,81.297,81.246,3.99572315]
[1772219416339,2.30019102,81.297,81.246,3.99572315]
[1772219416737,11.0714,81.296,81.246,3.99572315]
[1772219416936,2.30019102,81.297,81.246,3.99572315]
[1772219417940,11.0724,81.289,81.246,3.99572315]
[1772219418136,2.30019102,81.297,81.246,3.99572315]
[1772219418740,11.0715,81.296,81.246,3.99572315]
[1772219419741,2.30019102,81.297,81.246,3.99572315]
[1772219420943,11.0735,81.281,81.246,3.99572315]
[1772219421741,11.0723,81.29,81.246,3.99572315]
[1772219422145,2.30019102,81.297,81.246,3.99572315]
[1772219422545,11.0731,81.284,81.246,3.99572315]
[1772219423752,2.22008216,81.283,81.232,3.99572315]
[1772219424246,11.0757,81.265,81.232,3.99572315]
[1772219424550,2.22008216,81.283,81.232,3.99572315]
[1772219425047,11.0753,81.267,81.232,3.99572315]
[1772219427355,11.0744,81.274,81.232,3.99572315]
[1772219428455,11.0753,81.268,81.232,3.99572315]
[1772219429052,2.3027439,81.302,81.247,2.67477858]
[1772219429658,3.73987313,81.299,81.232,2.67477858]
[1772219430255,9.47373541,81.3,81.232,2.67477858]
[1772219430256,3.73987313,81.279,81.232,2.67477858]
[1772219431749,3.73987313,81.263,81.216,2.77362796]
[1772219432557,3.73987313,81.276,81.225,2.77362796]
[1772219432748,9.47373541,81.3,81.225,2.77362796]
[1772219432749,3.73987313,81.299,81.225,2.77362796]
[1772219433159,11.0735,81.281,81.242,2.79444534]
[1772219433548,11.0725,81.288,81.245,2.79444534]
[1772219435258,11.0734,81.281,81.245,2.79444534]
[1772219436261,14.81237313,81.289,81.245,2.79444534]
[1772219437157,11.0733,81.282,81.245,2.79444534]
[1772219437555,3.73987313,81.289,81.245,2.79444534]
[1772219438161,11.0742,81.276,81.233,2.81638852]
[1772219438362,3.73987313,81.289,81.235,13.89598852]
[1772219438557,3.73987313,81.289,81.236,2.81638852]
[1772219439258,3.73987313,81.289,81.235,11.0796]
[1772219439259,3.73987313,81.309,81.239,2.81520521]
[1772219439654,14.94050661,81.307,81.259,13.89429171]
[1772219439862,14.94050661,81.307,81.26,2.81783752]
[1772219440263,3.96269034,81.304,81.26,2.81783752]
[1772219441864,3.96269034,81.304,81.221,2.82334028]
[1772219442964,11.0722,81.291,81.247,2.80375756]
[1772219445456,3.96269034,81.304,81.22,9.43696904]
[1772219445457,11.0709,81.3,81.25,2.80408405]
[1772219446265,3.96269034,81.293,81.246,2.80408405]
[1772219447354,11.0721,81.291,81.25,11.0776]
[1772219448165,11.0729,81.286,81.25,11.0776]
[1772219449568,11.0729,81.286,81.251,2.81547518]